Cogmind - Beta 14 @@@ ROGUE MODE // 2025.03.02 @ 02:33:21 Player: Udabudha Result: Destroyed by H-61 Shepherd with Heavy Assault Cannon Performance ------------- Evolutions (2) 1000 Regions Visited (4) 800 Robots Destroyed (24) 120 Value Destroyed (771) 771 Prototype IDs (0) 0 Alien Tech Used (0) 0 Bonus (200) 200 TOTAL SCORE: 2891 Bonus ------- Pacifist 200 Cogmind --------- Core Integrity 0/550 Matter 295/300 Energy 100/100 System Corruption 0% Temperature Cool (0) Movement Core (50) Location -8/Materials Parts ------- > --- POWER (1) -------- (None) > --- PROPULSION (4) --- (None) > --- UTILITY (2) ------ (None) > --- WEAPON (4) ------- Mining Claw > --- INVENTORY (5) ---- Light Deuterium Engine Peak State ------------ > --- POWER ------------ Nuclear Core > --- PROPULSION ------- (None) > --- UTILITY ---------- High-powered Tractor Beam > --- WEAPON ----------- Assault Rifle Light Assault Rifle Minigun Minigun > --- INVENTORY -------- Nuclear Core Light Assault Rifle [Rating: 14] Favorites ----------- Power Nuclear Core Engine Ion Engine Power Core Nuclear Core Propulsion Aluminum Leg Leg Aluminum Leg Utility High-powered Tractor Beam Device High-powered Tractor Beam Weapon Minigun Energy Gun Small Laser Energy Cannon Ion Cannon Ballistic Gun Minigun Ballistic Cannon Assault Cannon Slashing Weapon Mining Claw Build | -11 -10 -9 -9 -8 ------- Run | Yrd Mat Mat Min Mat Slots Evolved 4 | . . 2 . 2 Power . | . . . . . Propulsion 2 | . . 2 . . Utility . | . . . . . Weapon 2 | . . . . 2 Parts Attached 22 | 5 . 3 2 12 Power 4 | 1 . 1 1 1 Engine 1 | 1 . . . . Core 3 | . . 1 1 1 Reactor . | . . . . . Propulsion 4 | 2 . . . 2 Treads . | . . . . . Leg 4 | 2 . . . 2 Wheel . | . . . . . Hover . | . . . . . Flight . | . . . . . Utility 1 | . . . . 1 Device 1 | . . . . 1 Storage . | . . . . . Processor . | . . . . . Hackware . | . . . . . Protection . | . . . . . Artifact . | . . . . . Weapon 13 | 2 . 2 1 8 Energy Gun 3 | 2 . . . 1 Energy Cannon 1 | . . . . 1 Ballistic Gun 6 | . . 2 1 3 Ballistic Cannon 2 | . . . . 2 Launcher . | . . . . . Special Weapon . | . . . . . Impact Weapon . | . . . . . Slashing Weapon 1 | . . . . 1 Piercing Weapon . | . . . . . Special Melee Weapon . | . . . . . Unidentified Prototypes . | . . . . . Parts Lost 19 | . . 4 1 14 Power 3 | . . 1 . 2 Propulsion 4 | . . 2 . 2 Utility 1 | . . . . 1 Weapon 11 | . . 1 1 9 Highest Loss Streak 7 | . . 4 1 7 To Critical Strikes 2 | . . . . 2 Average Slot Usage (%) 46 | . 71 37 31 46 Engine 2 | . 14 3 . . Core 6 | . . 4 11 8 Leg 5 | . 28 7 . 2 Device 2 | . . . . 4 Energy Gun 6 | . 28 14 . . Energy Cannon 1 | . . . . 1 Ballistic Gun 19 | . . 6 20 26 Slashing Weapon 1 | . . . . 2 Peak Build Rating 14 | 5 5 7 9 14 Average Rating 9 | 3 5 4 8 11 On Entrance 5 | . 5 5 7 9 Naked Turns . | . . . . . Heaviest Build 18 | 8 8 11 13 18 Greatest Support 20 | 20 20 20 3 20 Greatest Overweight (x) 5 | . . 3 4 5 Average Overweight (x) 1 | . . . 4 3 Largest Inventory Capacity 5 | 5 5 5 5 5 Average Capacity 5 | 5 5 5 5 5 Most Carried 5 | 2 1 5 5 4 Average Carried 2 | . . 2 4 2 Final Capacity 5 | 5 5 5 5 5 Final Carried 5 | . 1 5 4 1 Class Distribution -------------------- 54% | Mutant 45% | Gunner Dominant Class ---------------- Mutant | -10/Materials Mutant | -9/Materials Mutant | -9/Mines Gunner | -8/Materials Resources | -11 -10 -9 -9 -8 ----------- Run | Yrd Mat Mat Min Mat Matter Collected 618 | 100 . 82 91 345 Remotely 307 | . . . . 307 Salvage Created 700 | . . 176 91 433 Parts 45 | . . 17 3 25 Haulers Intercepted . | . . . . . Recyclers Shooed . | . . . . . Parts Field Recycled . | . . . . . Retrieved Matter . | . . . . . Parts Self-Destructed . | . . . . . Prevented . | . . . . . Kills | -11 -10 -9 -9 -8 ------- Run | Yrd Mat Mat Min Mat Combat Hostiles Destroyed 20 | . . 8 2 10 Guns 12 | . . 3 2 7 Cannons 3 | . . . . 3 AOE 5 | . . 5 . . Classes Destroyed 7 | . . 4 1 2 Worker 1 | . . 1 . . Tunneler 2 | . . 2 . . Watcher 1 | . . . . 1 Swarmer 6 | . . 4 . 2 Grunt 11 | . . 4 1 6 Brawler 1 | . . . 1 . Sentry 2 | . . . . 2 Best Kill Streak 10 | . . 10 2 4 Combat Bots Only 7 | . . 7 2 2 Max Kills in Single Turn 8 | . . 8 1 1 Gunslinging . | . . . . . Exploded 5 | . . 5 . . Melee . | . . . . . Uniques/NPCs Destroyed . | . . . . . Combat | -11 -10 -9 -9 -8 -------- Run | Yrd Mat Mat Min Mat Hostile Shots Fired 273 | . . 46 11 216 Missed 75 | . . 5 4 66 Damage Taken 2584 | . 16 754 87 1727 Core 929 | . . 343 11 575 Absorbed by Shields . | . . . . . Core Remaining (%) 70 | 100 100 . 11 . Volleys Fired 57 | . 1 18 6 32 Largest 4 | . 2 2 2 4 Hottest 125 | . 90 90 65 125 Shots Fired 135 | . 2 36 9 88 Gun 122 | . 2 36 9 75 Cannon 13 | . . . . 13 Launcher . | . . . . . Special . | . . . . . Kinetic 88 | . . 10 8 70 Thermal 47 | . 2 26 1 18 Explosive . | . . . . . Electromagnetic . | . . . . . Robot Hit Streak 12 | . . 5 8 12 Robot Miss Streak 4 | . 2 4 . 3 Penetration Max . | . . . . . Secondary Targets 4 | . . . 1 3 Max Gunslinging Chain 1 | . . . 1 1 Shots Hit Robots 78 | . . 16 8 54 Core Hits 41 | . . 14 3 24 Critical Kills . | . . . . . Critical Parts Destroyed . | . . . . . Critical Strikes . | . . . . . Melee Attacks 5 | . . . . 5 Impact . | . . . . . Slashing 5 | . . . . 5 Piercing . | . . . . . Sneak Attacks 2 | . . . . 2 Combat Hostiles . | . . . . . Follow-up Attacks . | . . . . . Damage Inflicted 2210 | . . 1101 137 972 Guns 958 | . . 209 136 613 Cannons 226 | . . . . 226 Explosions 892 | . . 892 . . Melee 133 | . . . . 133 Ramming 1 | . . . 1 . Kinetic 742 | . . 41 123 578 Thermal 568 | . . 294 13 261 Explosive 766 | . . 766 . . Electromagnetic . | . . . . . Impact . | . . . . . Slashing 133 | . . . . 133 Piercing . | . . . . . Highest Corruption . | . . . . . Average Corruption . | . . . . . Corruption Purged . | . . . . . Corruption Blocked . | . . . . . Overload Shots . | . . . . . Overflow Damage 241 | . . 209 . 32 Projectiles 2 | . . . . 2 Explosions 209 | . . 209 . . Melee 30 | . . . . 30 Knockbacks . | . . . . . Impact . | . . . . . Kinetic . | . . . . . Secondary . | . . . . . Self-Inflicted Damage 277 | . . 277 . . Shots 4 | . . 4 . . Rammed 1 | . . . 1 . Targets Rammed 1 | . . . 1 . Kicked . | . . . . . Crushed . | . . . . . Highest Temperature 334 | . 30 334 28 255 Average Temperature 86 | . 18 111 10 81 Received Heat Transfer 675 | . . 240 30 405 Siege Activations . | . . . . . Robots Corrupted . | . . . . . Combat Hostiles . | . . . . . Parts Fried . | . . . . . Impact Corruptions . | . . . . . Robots Melted . | . . . . . Combat Hostiles . | . . . . . Parts Melted 3 | . . 3 . . Heat Transferred 992 | . . 523 25 444 Parts Sabotaged . | . . . . . Parts Stolen . | . . . . . Parts Stripped . | . . . . . Power Chain Reactions . | . . . . . Alert | -11 -10 -9 -9 -8 ------- Run | Yrd Mat Mat Min Mat Peak Influence 338 | . 29 338 171 227 Initial 131 | . . . 131 66 Average 111 | . 10 187 163 112 Maximum Alert Level 1 | . . 1 . 1 Low Security (%) 81 | 100 100 35 100 86 Level 1 18 | . . 64 . 13 Level 2 . | . . . . . Level 3 . | . . . . . Level 4 . | . . . . . Level 5 . | . . . . . High Security . | . . . . . Max Security . | . . . . . Squads Dispatched 7 | . 1 1 . 5 Investigation 2 | . 1 1 . . Extermination . | . . . . . Reinforcement 3 | . . . . 3 Assault . | . . . . . Garrison 2 | . . . . 2 Intercept . | . . . . . Searches Triggered . | . . . . . Construction Impeded . | . . . . . Haulers Reinforced . | . . . . . Active Scanning Responses . | . . . . . Cargo Convoy Interrupts . | . . . . . Stealth | -11 -10 -9 -9 -8 --------- Run | Yrd Mat Mat Min Mat Distress Signals 3 | . . . . 3 Communications Jammed . | . . . . . Distress Signals . | . . . . . Times Spotted 39 | . 2 10 2 25 Peak Tracking Total 8 | . 1 6 2 8 Tactical Retreats 3 | . . . . 3 Traps | -11 -10 -9 -9 -8 ------- Run | Yrd Mat Mat Min Mat Traps Triggered 1 | . 1 . . . Indirectly . | . . . . . Trap Hack Attempts . | . . . . . Triggered . | . . . . . Disarmed . | . . . . . Reprogrammed . | . . . . . Reused . | . . . . . Traps Extracted . | . . . . . Installed . | . . . . . Triggered . | . . . . . Machines | -11 -10 -9 -9 -8 ---------- Run | Yrd Mat Mat Min Mat Machines Disabled 9 | . . 7 . 2 Max in Single Turn 6 | . . 6 . 1 Machines Repaired . | . . . . . Machines Dismantled . | . . . . . Machines Sabotaged . | . . . . . Overloaded Fab Kills . | . . . . . Hacking | -11 -10 -9 -9 -8 --------- Run | Yrd Mat Mat Min Mat Machines Accessed 3 | . 2 1 . . Terminals 3 | . 2 1 . . Fabricators . | . . . . . Repair Stations . | . . . . . Recycling Units . | . . . . . Scanalyzers . | . . . . . Garrison Access . | . . . . . Total Hacks 9 | . 5 4 . . Successful 4 | . 2 2 . . Failed 5 | . 3 2 . . Catastrophic 1 | . 1 . . . Database Lockouts . | . . . . . Manual . | . . . . . Terminals 9 | . 5 4 . . Fabricators . | . . . . . Repair Stations . | . . . . . Recycling Units . | . . . . . Scanalyzers . | . . . . . Garrison Access . | . . . . . Terminal Hacks 4 | . 2 2 . . Robot Analysis 2 | . 1 1 . . Unreport Threat 1 | . 1 . . . Zone Layout 1 | . . 1 . . Fabricator Hacks . | . . . . . Repair Station Hacks . | . . . . . Recycling Unit Hacks . | . . . . . Scanalyzer . | . . . . . Garrison Access Hacks . | . . . . . Unauthorized Hacks . | . . . . . Terminals . | . . . . . Fabricators . | . . . . . Repair Stations . | . . . . . Recycling Units . | . . . . . Scanalyzers . | . . . . . Garrison Access . | . . . . . Data Cores Recovered . | . . . . . Used . | . . . . . Hacking Detections 3 | . 2 1 . . Full Trace Events 3 | . 2 1 . . Feedback Events . | . . . . . Feedback Blocked . | . . . . . Robot Schematics Acquired . | . . . . . Robots Built . | . . . . . Authchips . | . . . . . Time . | . . . . . Total Robot Build Rating . | . . . . . Part Schematics Acquired . | . . . . . Parts Built . | . . . . . Authchips . | . . . . . Time . | . . . . . Total Part Build Rating . | . . . . . Parts Repaired . | . . . . . Time . | . . . . . Parts Recycled . | . . . . . Recycled Matter . | . . . . . Retrieved Matter . | . . . . . Retrieved Components . | . . . . . Parts Scanalyzed . | . . . . . Part Schematics Acquired . | . . . . . Parts Damaged . | . . . . . Bothacking | -11 -10 -9 -9 -8 ------------ Run | Yrd Mat Mat Min Mat Used RIF Installer . | . . . . . Robots Hacked . | . . . . . Non-combat . | . . . . . Combat . | . . . . . Robot Hacks Applied . | . . . . . Relay Couplers Released . | . . . . . Fabnet Peak Effective % . | . . . . . Robots Rewired . | . . . . . Allies Hacked . | . . . . . Hacks Repelled . | . . . . . Allies | -11 -10 -9 -9 -8 -------- Run | Yrd Mat Mat Min Mat Total Allies . | . . . . . Largest Group . | . . . . . Highest-Rated Group . | . . . . . Highest-Rated Ally . | . . . . . Total Orders . | . . . . . Ally Attacks . | . . . . . Total Damage . | . . . . . Kills . | . . . . . Allies Corrupted . | . . . . . Allies Melted . | . . . . . Intel | -11 -10 -9 -9 -8 ------- Run | Yrd Mat Mat Min Mat Robot Analysis Total 2 | . 1 1 . . Derelict Logs Recovered . | . . . . . Drone Launches . | . . . . . Drone Recoveries . | . . . . . Exploration | -11 -10 -9 -9 -8 ------------- Run | Yrd Mat Mat Min Mat Turns Passed 1023 | 56 104 162 79 622 Spaces Moved 452 | 43 83 101 25 200 Core 262 | 7 . 71 25 159 Treads . | . . . . . Legs 190 | 36 83 30 . 41 Wheels . | . . . . . Hover . | . . . . . Flight . | . . . . . Fastest Speed 50 | 50 120 50 250 50 Average Speed 178 | 108 120 100 250 247 Slowest Speed 300 | 120 120 200 250 300 Overloaded Moves . | . . . . . Propulsion Burnouts . | . . . . . Robots Hopped . | . . . . . Cave-ins Triggered . | . . . . . Exploration Rate (%) 15 | 4 21 18 9 24 Regions Visited 4 Branch Regions 1 Pre-discovered Areas . | . . . . . Known Exits Taken . | . . . . . Unknown Exits Taken 4 | 1 1 1 1 . Scrap Searched . | . . . . . Spaces Dug . | . . . . . Terrain Destroyed 27 | . . 27 . . Melee . | . . . . . Projectile . | . . . . . AOE 27 | . . 27 . . Terrain Rammed . | . . . . . Walls Destroyed . | . . . . . Machines Disabled . | . . . . . Actions | -11 -10 -9 -9 -8 --------- Run | Yrd Mat Mat Min Mat Total 560 | 52 86 127 33 262 Wait 4 | . . . . 4 Move 448 | 42 82 100 24 200 Hop . | . . . . . Pick Up 22 | 5 2 6 . 9 Fast Attach . | . . . . . Attach 20 | 5 . 2 1 12 Detach . | . . . . . Swap 2 | . . 1 1 . Drop 1 | . 1 . . . Fire 57 | . 1 18 6 32 Melee 5 | . . . . 5 Ram 1 | . . . 1 . Kick . | . . . . . Crush . | . . . . . Escape Stasis . | . . . . . Rewire . | . . . . . Trap . | . . . . . Miscellaneous . | . . . . . Route ------- -11/Scrapyard -10/Materials -9/Materials -9/Mines -8/Materials History --------- Turn | Location | Event 2 | -11/Scrapyard | Discovered new exit (range 16) 57 | -11/Scrapyard | Entered Materials 155 | -10/Materials | Discovered new exit (range 7) 161 | -10/Materials | Entered another Materials area 161 | -9/Materials | Evolved 2 slots: Propulsion x2 219 | -9/Materials | Core integrity fell below 50% 249 | -9/Materials | Discovered new exit (range 10) 251 | -9/Materials | Destroyed 7 combat bots 252 | -9/Materials | Lost 4 parts (1p2n1w) 289 | -9/Materials | Core integrity fell below 20% 306 | -9/Materials | Build established: Mutant 323 | -9/Materials | Entered Mines 374 | -9/Mines | Discovered new exit (range 9) 402 | -9/Mines | Entered Materials 402 | -8/Materials | Evolved 2 slots: Weapon x2 706 | -8/Materials | Build established: Gunner 861 | -8/Materials | Garrison activated, responded to threat 929 | -8/Materials | Lost 7 parts (1p1u5w) 997 | -8/Materials | Core integrity fell below 50% 1019 | -8/Materials | Core integrity fell below 20% 1024 | -8/Materials | Destroyed by H-61 Shepherd with Heavy Assault Cannon Last Messages --------------- K-01 Serf collects debris. Acquired Assault Cannon. K-01 Serf collects debris. Aluminum Leg destroyed. ALERT: Suspicious intruders detected, dispatching Specialist reinforcements to area. Critical hit (Destroy). Aluminum Leg destroyed. K-01 Serf collects debris. Ion Cannon destroyed. S-10 Pest destroyed. Assault Cannon destroyed. Sneak attack on R-06 Scavenger. Destroyed Lgt. Ion Engine. R-06 Scavenger sends out distress signal. H-61 Shepherd calls for reinforcements. ALERT: Hostile activity reported, dispatching reinforcements to area. Slug penetrates Electrolysis Chamber. Electrolysis Chamber disabled. Map ----- +----------------------------------------------------+ | | | | | | | | | | | ???????????????????????????????????? | | ???????????????????????????????????? | | ???????????????????????????????????? | | ???????????????????????????????????? | | ?????######################????????? | | ?????? T +????????? | | ??????? #????????? | | #######+## #????????? | | # +????????? | | # #????????? | | =% # #????????? | | ! """ # === #????????? | | """ # ==!% ######## #????????? | | "" # ==! ####???# #????????? | | "T % # "" #???# #????????? | | """ # G"#???# #??##????? | | ####/#####] ]] "" #???#s###;####?? | | #???# ]]] ####???# #?? | | #### #???# ]] ]#??????# "" #?? | | ## #???# #??????# %""" #?? | | ## #???# #??????#@ """ #?? | | ## #???# ##### #????? + gg #?? | | ## #???# #???# #??? #H """ #?? | | #+## #???# #???# #??# # """ #?? | | # #???# #???? #??# ?# """ #?? | | # ##### #???? #??# ??# #?? | | # #???? ?? ???##########?? | | # #???? #?##??????????????? | | # """ #???? ??????????????????? | | # """ ""#?? ??????????????????? | | # """ Y"#?? ??????????????????? | | # ""#?????????????????????? | | #### ! ###?????????????????????? | | ???# #???????????????????????? | | ???# #???????????????????????? | | ???# "T" #???????????????????????? | | ???# """ #???????????????????????? | | ???# #???????????????????????? | | ???# ? +???????????????????????? | | ???? ##?###????????????????????????? | | ???? ??????????????????????????????? | | ???? ??????????????????????????????? | | ???????????????????????????????????? | | ???????????????????????????????????? | | ???????????????????????????????????? | +----------------------------------------------------+ Best States ------------- Heat Dissipation 31 Energy Generation 14 Energy Capacity 250 Matter Stores 300 Matter Capacity 300 Sight Range 16 Terrain Scan Density 10 Evasion (%) 55 Item Schematics ----------------- None Robot Schematics ------------------ None Fabricated ------------ Nothing Alien Tech Used ----------------- None Achievements -------------- Quick And Dirty Use The Force Challenges ------------ None Game ------ Seed ChipClaymoresNeutralizer Manual? 0 Play Time 00:12:18 Cumulative 12.4 hours Start 2025.01.18 @ 02:38:13 End 2025.03.02 @ 02:33:21 Sessions 4 Manual Loads 0 Difficulty Rogue Special Mode None Game No. 32 Rogue 29 Adventurer 1 Explorer 2 Win Type - Total 0 Types 0/0/0/0/0/0/0/0/0 Lore% 12 Gallery% 20 Achievement% 19 Wizard Run 0 Options --------- Layout 1 ASCII 0 Keyboard 0 Movement Mouse Keybinds 0 Fullscreen 1 Font 48/Smallcaps Map View 50x35 Zoom Use 0% Tactical HUD 0 Map Filters NONE Filters NONE Steam 1 RUN: a0bb83f6-6be9-415a-bcb9-cec21e9b9642